bitfinex/quotes_ETHUSD_20251024
["timestamp","ask_amount","ask_price","bid_price","bid_amount"]
[1761328938619,0.4459,3892.2,3892.1,3.75916271]
[1761328938620,0.001,3892.2,3892.1,3.75916271]
[1761328938800,0.001,3892.2,3892.1,3.88796271]
[1761328939126,0.001,3892.2,3892.1,3.99083741]
[1761328940428,0.001,3892.2,3892.1,5.54603741]
[1761328943611,0.001,3892.2,3892.1,5.70103741]
[1761328943918,0.001,3892.2,3892.1,9.98853741]
[1761328944119,0.001,3892.6,3892.5,3.07592303]
[1761328944319,0.001,3892.6,3892.5,15.23982226]
[1761328944521,0.001,3892.6,3892.5,15.36862226]
[1761328944831,0.001,3892.6,3892.5,15.47147553]
[1761328946642,0.001,3892.6,3892.5,5.07593271]
[1761328946855,0.4459,3892.6,3892.5,2.8006963]
[1761328947155,0.4459,3892.6,3892.5,2.69784303]
[1761328950556,0.001,3892.6,3892.5,2.69784303]
[1761328950726,0.4459,3892.6,3892.5,2.69784303]
[1761328951158,0.001,3892.6,3892.5,3.86987588]
[1761328951526,0.001,3892.6,3892.5,5.42507588]
[1761328951954,0.001,3892.6,3892.5,8.67907588]
[1761328953757,0.001,3892.6,3892.5,8.89847588]
[1761328954071,0.001,3892.6,3892.5,13.69285588]
[1761328956479,1e-08,3893.1,3893.0,2.56871307]
[1761328956662,1e-08,3893.1,3893.0,14.3278272]
[1761328956969,1e-08,3893.1,3893.0,14.7753272]
[1761328957168,1e-08,3893.1,3893.0,14.87815641]
[1761328957543,1e-08,3893.1,3893.0,15.79836147]
[1761328959365,1e-08,3893.1,3893.0,14.87815641]
[1761328960073,1e-08,3893.1,3893.0,15.79836147]
[1761328961177,1e-08,3893.1,3893.0,15.92716147]
[1761328961476,1e-08,3893.1,3893.0,15.00695641]
[1761328962895,1e-08,3893.1,3893.0,18.84695641]
[1761328963069,1e-08,3893.1,3893.0,15.14545641]
[1761328963261,1e-08,3893.1,3893.0,18.39845641]
[1761328963798,1e-08,3893.1,3893.0,12.21429359]
[1761328964001,1e-08,3893.1,3893.0,18.40045641]
[1761328970097,0.001,3893.9,3893.6,2.56831723]
[1761328970298,0.001,3893.9,3893.8,2.56818532]
[1761328970798,0.001,3893.9,3893.8,2.78758532]
[1761328971105,0.001,3893.9,3893.8,4.34278532]
[1761328971609,0.001,3893.9,3893.8,4.12338532]
[1761328971905,0.001,3893.9,3893.8,5.09837344]
[1761328975211,0.001,3893.9,3893.8,8.93837344]
[1761328978324,0.2073,3893.9,3893.8,8.93837344]
[1761328978900,0.2073,3893.9,3893.8,7.96338532]
[1761328979218,0.2073,3893.9,3893.8,2.56818532]
[1761328980122,0.2073,3893.9,3893.8,2.69698532]
[1761328985239,0.2073,3893.9,3893.5,0.002]
[1761328985644,0.2073,3893.9,3893.5,2.57038136]
[1761328985836,0.86071659,3893.8,3893.6,2.56831243]
[1761328986241,0.2063,3893.7,3893.6,2.56831243]
[1761328987236,0.001,3893.9,3893.8,2.56818532]
[1761328987557,0.001,3893.9,3893.8,9.27125123]
[1761328988628,0.001,3893.9,3893.8,10.63835629]
[1761328988841,0.001,3893.9,3893.8,12.09726467]
[1761328989544,1e-08,3894.4,3894.3,4.86293558]
[1761328989733,1e-08,3894.4,3894.3,13.26280149]
[1761328989936,1e-08,3894.4,3894.3,13.70970149]
[1761328990246,1e-08,3894.4,3894.3,15.47557971]
[1761328990650,1e-08,3894.4,3894.3,14.52179971]
[1761328990847,1e-08,3894.4,3894.3,10.06124182]
[1761328991217,1e-08,3894.4,3894.3,10.50814182]
[1761328991418,1e-08,3894.4,3894.3,10.06124182]
[1761328991749,1e-08,3894.4,3894.3,5.8889338]
[1761328992051,0.20790001,3894.4,3894.3,5.8889338]
[1761328992355,1e-08,3894.4,3894.3,5.8889338]
[1761328993620,0.20790001,3894.4,3894.3,5.8889338]
[1761328994246,1e-08,3894.4,3894.3,5.8889338]
[1761328995374,1e-08,3894.4,3894.3,6.0169338]
[1761328995864,0.20790001,3894.4,3894.3,6.0169338]
[1761328996025,1e-08,3894.4,3894.3,6.0169338]
[1761328996427,0.20790001,3894.4,3894.3,6.0169338]
[1761328996627,0.20790001,3894.4,3894.3,4.25105558]
[1761328998168,1e-08,3894.4,3894.3,4.25105558]
[1761328998541,0.20790001,3894.4,3894.3,4.25105558]
[1761328998950,0.20790001,3894.4,3894.3,2.56785558]
[1761329000845,0.20790001,3894.4,3893.6,2.56829217]
[1761329001050,0.20790001,3894.4,3893.5,0.002]
[1761329001358,0.2185,3893.7,3893.6,4.12351723]
[1761329001758,0.4265,3893.7,3893.6,4.12351723]
[1761329002600,0.4265,3893.7,3893.6,2.56831723]
[1761329006793,0.4265,3893.7,3893.5,0.002]
[1761329007099,0.50746624,3893.6,3893.5,0.002]
[1761329007303,0.2185,3893.7,3893.6,2.56831723]
[1761329007618,1.9915,3893.7,3893.6,2.56831723]
[1761329007817,2.1995,3893.7,3893.6,2.56831723]
[1761329008510,2.1995,3893.7,3893.5,0.002]
[1761329008511,2.41945,3893.7,3893.5,0.002]
[1761329008719,0.208,3893.6,3893.5,0.002]
[1761329010335,3.46,3893.6,3893.5,2.5703832]
[1761329010904,3.46,3893.6,3893.5,0.002]
[1761329011100,3.862725,3893.6,3893.5,0.002]
[1761329013338,6.43104223,3893.6,3893.5,0.002]
[1761329013540,6.55984223,3893.6,3893.5,0.002]
[1761329015151,3.991525,3893.6,3893.5,0.002]
[1761329015724,6.55984223,3893.6,3893.5,0.002]
[1761329016253,3.991525,3893.6,3893.5,0.002]
[1761329016462,6.55984223,3893.6,3893.5,0.002]
[1761329017825,3.991525,3893.6,3893.5,0.002]
[1761329018653,6.55984223,3893.6,3893.5,0.002]
[1761329019653,7.06672223,3893.6,3893.5,0.002]
[1761329020345,12.21748855,3893.6,3893.5,0.002]
[1761329021631,0.610725,3893.6,3893.5,0.002]
[1761329021838,0.2185,3893.7,3893.5,0.002]
[1761329022057,3.46,3893.6,3893.5,0.002]
[1761329026750,4.46,3893.6,3893.5,0.002]
[1761329027985,4.252,3893.6,3893.5,0.002]
[1761329029389,4.46,3893.6,3893.5,0.002]
[1761329035464,4.252,3893.6,3893.5,0.002]
[1761329035875,4.252,3893.6,3893.5,2.5703832]
[1761329036866,4.252,3893.6,3893.5,0.002]
[1761329037298,4.252,3893.6,3893.5,2.5703832]
[1761329038774,1.0,3893.6,3893.5,2.5703832]
[1761329038973,4.252,3893.6,3893.5,2.5703832]
[1761329039178,1.0,3893.6,3893.5,2.5703832]
[1761329039378,4.252,3893.6,3893.5,3.0054832]
[1761329039600,4.252,3893.6,3893.5,3.1342832]
[1761329039900,4.252,3893.6,3893.5,2.6991832]
[1761329040604,1.0,3893.6,3893.5,3.66104756]
[1761329040772,4.08,3893.6,3893.5,8.81181388]
[1761329041797,1.0,3893.6,3893.5,8.81181388]
[1761329042102,1e-08,3894.4,3894.3,2.56785558]
[1761329042312,3.25200001,3894.4,3894.3,8.36020107]
[1761329042605,3.25200001,3894.4,3894.3,8.79530107]
[1761329043781,1e-08,3894.4,3894.3,10.35050107]
[1761329044536,1e-08,3894.4,3894.3,10.85738107]
[1761329044835,1e-08,3894.4,3894.3,12.80029566]
[1761329045125,1e-08,3894.4,3894.3,11.87683751]
[1761329045531,0.001,3894.7,3894.6,3.07453778]
[1761329045829,0.001,3894.7,3894.6,9.81662222]
[1761329046127,0.001,3894.7,3894.6,10.25172222]
[1761329050942,1e-08,3895.2,3895.1,3.29480818]
[1761329051109,0.72286946,3897.1,3895.1,3.29480818]
[1761329051110,0.72286946,3897.1,3895.5,1.5552]
[1761329051315,0.72286946,3897.1,3895.8,2.06208]
[1761329051515,0.72286946,3897.1,3895.9,9.70300375]
[1761329051516,0.001,3897.1,3895.9,9.70300375]
[1761329051926,0.001,3897.1,3895.9,9.80576797]
[1761329052445,0.001,3897.1,3895.9,11.36096797]
[1761329052649,0.2135,3897.0,3895.9,11.36096797]
[1761329053346,0.2175,3896.9,3895.9,14.61096797]
[1761329053534,0.2175,3896.9,3895.9,16.32875315]
[1761329054937,0.2146,3896.8,3895.9,16.32875315]
[1761329055560,0.2146,3896.8,3895.9,16.45675315]
[1761329056549,0.001,3896.8,3895.9,16.45675315]
[1761329058452,0.001,3896.8,3895.9,20.29675315]
[1761329059848,0.001,3896.8,3895.9,14.12653039]
[1761329060939,0.001,3896.8,3895.9,10.28653039]
[1761329061139,0.001,3896.8,3895.9,16.45675315]
[1761329061771,0.001,3896.8,3895.9,13.20675315]
[1761329061938,0.001,3896.8,3895.9,16.45575315]
[1761329064569,0.188,3896.8,3895.9,16.45575315]
[1761329065550,0.188,3896.8,3895.9,12.74765315]
[1761329065551,0.187,3896.6,3895.9,12.74765315]
[1761329065865,0.187,3896.6,3895.9,16.45575315]
[1761329067228,0.187,3896.6,3895.9,15.94887315]
[1761329067765,0.001,3896.8,3896.6,2.56633988]
[1761329068077,0.001,3896.8,3896.6,4.12153988]
[1761329068398,0.001,3896.8,3896.6,4.35230041]
[1761329068601,0.001,3896.8,3896.6,5.66119457]
[1761329070301,0.001,3896.8,3896.6,6.12029457]
[1761329072771,0.001,3896.8,3896.6,5.66119457]
[1761329072976,0.001,3896.8,3896.6,6.12029457]
[1761329073813,0.001,3896.8,3896.6,6.62717457]
[1761329074372,0.001,3896.8,3896.6,6.16807457]
[1761329074997,0.001,3896.8,3896.6,6.62717457]
[1761329075787,0.001,3896.8,3896.6,6.16807457]
[1761329075986,0.001,3896.8,3896.6,6.62717457]
[1761329077081,0.001,3896.8,3896.6,9.87517457]
[1761329079121,0.001,3896.8,3896.6,13.71517457]
[1761329079813,0.001,3896.8,3896.6,14.63458172]
[1761329080278,0.001,3896.8,3896.6,13.71517457]
[1761329081816,0.6,3897.9,3896.6,13.71517457]
[1761329081817,0.6,3897.9,3897.8,2.56554979]
[1761329082049,0.6,3897.9,3897.8,14.30140753]
[1761329082252,0.6,3897.9,3897.8,14.76390753]
[1761329082253,1e-08,3897.9,3897.8,14.76390753]
[1761329082613,1e-08,3897.9,3897.8,16.28505947]
[1761329082854,1e-08,3898.3,3898.2,3.07216654]
[1761329083056,1e-08,3898.3,3898.2,11.52907595]
[1761329083264,1e-08,3898.3,3898.2,11.99157595]
[1761329083816,1e-08,3898.3,3898.2,11.30657595]
[1761329084046,1e-08,3898.3,3898.2,11.60657595]
[1761329086220,0.00100001,3898.3,3898.2,11.60657595]
[1761329086825,0.00100001,3898.3,3898.2,12.06907595]
[1761329087348,0.00100001,3898.3,3898.2,11.60657595]
[1761329087517,0.00100001,3898.3,3898.2,14.85357595]
[1761329089354,0.00100001,3898.3,3898.2,15.31607595]
[1761329089574,0.00100001,3898.3,3898.2,14.85357595]
[1761329089789,0.00100001,3898.3,3898.2,15.31607595]
[1761329090443,0.00100001,3898.3,3898.2,14.85357595]
[1761329090649,0.17250001,3898.3,3898.2,14.85257595]
[1761329090988,0.17250001,3898.3,3898.2,8.17547319]
[1761329091146,0.17250001,3898.3,3898.2,4.42048654]
[1761329091879,0.17250001,3898.3,3898.2,4.54848654]
[1761329097567,0.00100001,3898.3,3898.2,4.54848654]
[1761329098578,0.17250001,3898.3,3898.2,4.54848654]
[1761329100186,0.00100001,3898.3,3898.2,4.54848654]
[1761329100373,0.17250001,3898.3,3898.2,4.54848654]
[1761329100945,0.17250001,3898.3,3898.2,0.128]
[1761329101776,0.17250001,3898.3,3898.0,0.128]
[1761329102093,0.17250001,3898.3,3898.0,2.69341453]
[1761329102263,0.52715001,3898.3,3898.0,2.69341453]
[1761329102465,0.52715001,3898.3,3898.0,0.128]
[1761329102661,0.1816,3898.2,3898.0,0.128]
[1761329103060,0.1816,3898.2,3898.0,2.69341759]
[1761329103684,0.1816,3898.2,3898.1,2.56735235]
[1761329103887,0.00100001,3898.3,3898.2,2.56528654]
[1761329104147,0.3,3899.8,3898.2,2.56528654]
[1761329104148,0.3,3899.8,3899.3,2.56456287]
[1761329104555,0.1918,3899.6,3899.3,2.69256287]
[1761329104678,0.423,3899.4,3899.3,2.69256287]
[1761329108416,0.4922,3899.8,3899.7,2.56429981]
[1761329108591,0.3,3899.8,3899.7,2.56429981]
[1761329108797,0.3,3899.8,3899.7,2.69229981]
[1761329109210,0.4922,3899.8,3899.7,2.69229981]
[1761329110490,0.3,3899.8,3899.7,2.69229981]
[1761329110684,0.3,3899.8,3899.7,2.56429981]
[1761329111296,0.4922,3899.8,3899.7,2.56429981]
[1761329111584,0.4922,3899.8,3899.0,2.5647486]
[1761329111585,0.4922,3899.8,3898.7,1.22115194]
[1761329111782,0.4922,3899.8,3898.7,2.86493259]
[1761329111783,0.2151,3898.8,3898.7,2.86493259]
[1761329112032,0.4076,3898.8,3898.7,2.56493259]
[1761329112541,0.2151,3898.8,3898.7,2.56493259]
[1761329112919,0.1925,3899.1,3899.0,2.56476019]
[1761329118130,2.463,3899.4,3899.3,2.56456287]
[1761329118649,0.3,3899.8,3899.3,2.56456287]
[1761329118650,3.545,3899.8,3899.7,2.56429981]
[1761329118845,3.7377,3899.8,3899.7,2.56429981]
[1761329119146,0.4927,3899.8,3899.7,2.56429981]
[1761329120673,0.88954,3899.8,3899.7,0.128]
[1761329120872,0.88954,3899.8,3898.4,0.2206]
[1761329120873,0.88954,3899.8,3899.6,2.69232321]
[1761329121035,0.1927,3899.7,3899.6,2.69232321]
[1761329121644,0.301,3899.8,3899.7,2.56429981]
[1761329122376,0.4937,3899.8,3899.7,2.56429981]
[1761329122577,0.4937,3899.8,3899.6,2.69231137]
[1761329122883,0.301,3899.8,3899.7,2.56429981]
[1761329123242,0.4937,3899.8,3899.7,2.56429981]
[1761329125171,0.4937,3899.8,3899.7,2.69229981]
[1761329125475,3.546,3899.8,3899.7,2.69229981]
[1761329126072,3.7387,3899.8,3899.7,2.69229981]
[1761329130802,2.50853183,3900.5,3899.9,2.56415414]
[1761329130964,3.49585318,3900.4,3899.9,2.56415414]
[1761329132861,0.0019,3900.3,3899.8,2.56421321]
[1761329133855,0.0019,3900.3,3899.9,2.56415122]
[1761329134904,0.0019,3900.3,3899.8,2.56421002]
[1761329135588,0.0019,3900.3,3899.8,2.51421002]
[1761329135907,1.11942461,3900.2,3899.8,2.56423406]
[1761329136091,1.11942461,3900.2,3899.9,2.56416287]
[1761329136408,0.0019,3900.1,3899.9,2.56416287]
[1761329136610,3.245,3900.0,3899.9,2.56416287]
[1761329139790,0.69033672,3900.9,3899.8,0.02564234]
[1761329140017,3.245,3900.8,3900.2,2.56391091]
[1761329140201,3.245,3900.8,3899.5,5.13269583]
[1761329140202,5.80858512,3900.8,3899.6,0.4633]
[1761329140403,2.56371356,3900.6,3899.3,2.56456287]
[1761329140607,0.001,3900.4,3899.3,2.56456287]
[1761329140810,3.245,3900.3,3900.1,0.128]
[1761329141620,3.245,3900.3,3899.6,0.128]
[1761329141621,2.56406289,3900.1,3899.6,0.128]
[1761329141916,0.58090629,3900.0,3899.6,0.128]
[1761329142118,3.245,3899.9,3899.6,0.128]
[1761329142699,3.245,3899.9,3899.6,2.69233616]
[1761329142898,3.245,3899.9,3899.6,0.128]
[1761329144126,3.245,3899.9,3899.5,0.128]
[1761329144626,3.245,3899.9,3899.5,2.69241701]
[1761329145123,3.245,3899.9,3899.5,0.128]
[1761329145294,0.41791896,3899.8,3899.4,0.128]
[1761329145896,3.373,3899.9,3899.4,0.128]
[1761329146626,1.182491,3899.9,3899.4,0.128]
[1761329147149,1.182491,3899.9,3899.4,2.6924863]
[1761329147827,1.182491,3899.9,3899.4,0.128]
[1761329148347,0.128,3899.7,3899.1,0.128]
[1761329148509,0.128,3899.7,3899.1,2.69264862]
[1761329148827,0.128,3899.7,3899.3,2.56450981]
[1761329149005,0.128,3899.7,3899.4,2.56448943]
[1761329149203,2.56390956,3900.3,3899.2,2.56462864]
[1761329149204,0.69033672,3900.3,3899.2,2.56462864]
[1761329149407,0.128,3899.8,3899.5,2.56441056]
[1761329149643,0.128,3899.8,3899.4,2.56447487]
[1761329149644,3.244,3899.7,3899.4,2.56447487]
[1761329151932,3.244,3899.7,3899.1,0.5913]
[1761329151933,3.244,3899.7,3899.1,0.128]
[1761329152138,3.5812,3899.7,3899.1,2.69265521]
[1761329152337,3.5812,3899.7,3899.1,2.69268225]
[1761329152562,3.5812,3899.7,3899.1,0.128]
[1761329152766,3.244,3899.7,3899.2,2.56458033]
[1761329153059,3.244,3899.7,3899.1,0.128]
[1761329153262,3.244,3899.7,3899.4,2.564455]
[1761329155531,3.244,3899.7,3899.1,0.128]
[1761329155769,3.244,3899.7,3898.8,0.002]
[1761329155770,5.13269583,3899.3,3898.8,0.002]
[1761329156065,3.372,3899.2,3898.8,0.002]
[1761329156264,3.5848,3899.2,3898.8,0.002]
[1761329156462,0.2128,3899.1,3898.8,0.002]
[1761329157176,5.26069583,3899.0,3898.8,0.002]
[1761329157383,3.244,3898.9,3898.8,0.002]
[1761329157681,3.4579,3898.9,3898.8,0.002]
[1761329158353,3.3589,3898.9,3898.8,0.002]
[1761329158549,1.168166,3898.9,3898.8,0.002]
[1761329159481,3.3599,3898.9,3898.8,0.002]
[1761329160894,0.128,3899.1,3898.8,0.002]
[1761329161088,3.245,3899.0,3898.8,0.002]
[1761329161269,3.245,3899.0,3898.8,2.56684506]
[1761329161480,3.245,3899.0,3898.8,0.002]
[1761329163189,3.245,3899.0,3898.8,2.56685223]
[1761329163711,0.77047043,3899.6,3898.8,0.002]
[1761329163984,0.50788,3899.9,3899.0,2.5647139]
[1761329163985,0.128,3899.4,3899.0,2.5647139]
[1761329164187,0.128,3899.4,3899.1,2.56467884]
[1761329164188,3.245,3899.3,3899.1,2.56467884]
[1761329164485,3.245,3899.3,3898.9,3.15191132]
[1761329164486,3.245,3899.3,3899.2,2.56462864]
[1761329164703,3.245,3899.3,3899.1,2.56466959]
[1761329165086,3.245,3899.3,3899.2,2.56462864]
[1761329165811,0.77141701,3899.9,3899.5,2.56438332]
[1761329165812,0.128,3899.8,3899.5,2.56438332]
[1761329165977,3.245,3899.7,3899.5,2.56438332]
[1761329166175,0.128,3899.8,3899.2,0.128]
[1761329166505,0.001,3899.9,3899.8,2.56423406]
[1761329166708,0.001,3899.9,3899.8,3.54899056]
[1761329166882,0.001,3899.9,3899.8,3.67699056]
[1761329168108,0.001,3899.9,3899.8,3.21789056]
[1761329168281,0.001,3899.9,3899.8,2.69223406]
[1761329168901,0.001,3899.9,3899.8,2.56423406]
[1761329169502,0.001,3899.9,3899.1,1.5552]
[1761329169711,0.001,3899.9,3898.6,1.35575194]
[1761329169712,0.1,3899.9,3899.4,2.56445505]
[1761329170014,0.4345,3899.9,3899.4,2.56445505]
[1761329170378,0.3355,3899.9,3899.4,2.56445505]
[1761329170778,0.099,3899.8,3899.1,2.56464275]
[1761329171200,0.099,3899.8,3898.4,0.002]
[1761329171201,2.56429981,3899.7,3898.4,0.002]
[1761329171405,0.099,3899.8,3898.4,0.002]
[1761329171406,9.40173076,3899.6,3898.4,0.002]
[1761329171587,9.40173076,3899.6,3898.5,2.56502405]
[1761329171588,0.66432525,3899.5,3898.5,2.56502405]
[1761329171893,0.66432525,3899.5,3898.7,2.99955102]
[1761329172090,0.66432525,3899.5,3898.8,2.56688762]
[1761329172297,0.66432525,3899.5,3898.9,2.5648102]
[1761329172522,0.66432525,3899.5,3898.8,2.56686844]
[1761329172689,3.244,3899.4,3899.1,2.56469109]
[1761329173220,3.244,3899.4,3899.2,2.56462623]
[1761329173523,3.244,3899.4,3899.1,2.56466114]
[1761329174318,2.56431612,3899.7,3899.1,2.56466114]
[1761329174532,2.56431612,3899.7,3898.8,0.002]
[1761329174533,5.80837544,3899.6,3898.8,0.002]
[1761329174837,5.80836629,3899.6,3898.9,2.56482597]
[1761329175125,5.80836629,3899.6,3899.0,2.56475566]
[1761329175421,3.244,3899.6,3899.1,2.56468727]
[1761329176111,3.244,3899.6,3899.2,0.4346]
[1761329176723,3.244,3899.6,3899.2,2.99920773]
[1761329176923,3.244,3899.6,3899.2,0.4346]
[1761329177793,3.244,3899.6,3899.1,2.56467865]
[1761329178918,3.372,3899.6,3899.1,2.56467865]
[1761329180041,3.372,3899.6,3899.0,2.69275037]
[1761329180042,5.93636751,3899.6,3899.0,2.69275037]
[1761329180224,3.4712,3899.6,3899.0,2.69275037]
[1761329181245,6.03556663,3899.6,3899.0,2.69275037]
[1761329181450,6.03556663,3899.6,3899.0,0.128]
[1761329181451,0.0992,3899.5,3899.0,0.128]
[1761329181876,3.372,3899.6,3899.0,2.69274435]
[1761329182073,5.93638458,3899.6,3899.0,0.128]
[1761329182744,5.93638458,3899.6,3899.0,2.69275391]
[1761329184968,5.93638458,3899.6,3899.0,0.128]
[1761329184969,3.372,3899.6,3899.0,0.128]
[1761329185131,3.372,3899.6,3898.8,0.002]
[1761329185132,0.0992,3899.5,3898.8,0.002]
[1761329185450,0.128,3899.4,3898.9,0.128]
[1761329185647,3.244,3899.3,3898.9,2.69281934]
[1761329185851,3.244,3899.3,3898.9,0.128]
[1761329186015,3.244,3899.2,3899.1,2.56469045]
[1761329186420,3.244,3899.2,3899.0,2.5647332]
[1761329186732,3.244,3899.2,3898.9,0.128]
[1761329186931,3.244,3899.2,3898.9,2.69281031]
[1761329188357,3.244,3899.2,3899.0,0.4346]
[1761329188522,3.244,3899.2,3899.1,2.56469441]
[1761329188934,3.244,3899.2,3899.1,2.99929441]
[1761329190244,3.244,3899.2,3898.9,2.69277172]
[1761329190245,3.244,3899.2,3899.0,2.56474917]
[1761329191262,3.244,3899.2,3899.1,2.56469441]
[1761329192067,3.244,3899.2,3899.1,2.99929441]
[1761329192636,0.128,3899.6,3899.2,2.56462655]
[1761329192840,3.244,3899.5,3899.2,2.56462655]
[1761329193061,3.244,3899.5,3899.2,2.99922655]
[1761329193470,3.244,3899.5,3899.3,0.4346]
[1761329194886,3.194,3899.5,3899.3,0.4346]
[1761329195257,3.194,3899.5,3899.4,2.5644971]
[1761329195899,3.194,3899.5,3899.4,0.4346]
[1761329197192,3.194,3899.5,3899.2,2.99922864]
[1761329197388,3.194,3899.5,3899.3,2.56455384]
[1761329197693,3.194,3899.5,3899.3,3.02465384]
[1761329199574,3.194,3899.5,3899.3,2.56455384]
[1761329199764,3.194,3899.5,3899.4,0.4601]
[1761329199964,3.194,3899.5,3899.2,2.56460648]
[1761329200164,3.194,3899.5,3899.2,3.02470648]
[1761329200371,3.194,3899.5,3899.1,2.69266876]
[1761329200702,3.194,3899.5,3899.1,3.15274807]
[1761329201206,3.194,3899.5,3899.2,2.56462643]
[1761329201362,3.194,3899.5,3899.1,3.15277139]
[1761329202730,3.194,3899.5,3899.2,2.56459918]
[1761329202891,3.194,3899.5,3899.2,0.4601]
[1761329203086,3.194,3899.5,3899.2,3.02472864]
[1761329203528,3.194,3899.5,3899.1,0.128]
[1761329203529,3.194,3899.5,3899.4,2.5644971]
[1761329203720,0.001,3899.6,3899.5,2.56443133]
[1761329203906,3.245,3899.6,3899.5,2.56443133]
[1761329204092,3.245,3899.6,3899.5,3.02453133]
[1761329205188,0.001,3899.6,3899.5,3.02453133]
[1761329205388,3.245,3899.6,3899.5,3.02453133]
[1761329205924,3.245,3899.6,3899.5,0.4601]
[1761329206412,3.245,3899.6,3899.5,3.02453133]
[1761329208550,0.001,3899.6,3899.5,3.5962402]
[1761329208731,0.001,3899.6,3899.5,3.74988451]
[1761329209025,0.001,3899.6,3899.5,3.7242402]
[1761329211625,0.001,3899.6,3899.4,2.56447417]
[1761329212224,0.001,3899.6,3899.5,2.56443133]
[1761329213157,0.001,3899.6,3899.3,2.56656124]
[1761329214653,0.001,3899.6,3899.3,0.002]
[1761329215558,0.001,3899.6,3899.4,2.56445496]
[1761329216061,0.001,3899.6,3899.5,2.56443133]
[1761329216425,0.001,3899.6,3899.5,3.02453133]
[1761329216935,0.001,3899.6,3899.5,2.56443133]
[1761329219453,0.001,3899.6,3899.4,2.5644971]
[1761329220305,0.001,3899.6,3899.3,0.002]
[1761329220595,0.1002,3899.6,3899.3,2.56654706]
[1761329220901,0.001,3899.6,3899.3,2.56654706]
[1761329221384,0.001,3899.6,3899.4,2.56449205]
[1761329221560,0.001,3899.6,3899.5,2.56443133]
[1761329223657,0.001,3899.6,3899.5,2.99283133]
[1761329224485,0.001,3899.6,3899.5,2.56443133]
[1761329224684,0.001,3899.6,3899.4,2.69247251]
[1761329225390,0.001,3899.6,3899.5,2.56443133]
[1761329228197,0.001,3899.6,3899.4,2.69249388]
[1761329228383,0.001,3899.6,3899.5,2.56443133]
[1761329229866,0.001,3899.6,3899.4,0.128]
[1761329230072,3.243,3899.5,3899.4,0.128]
[1761329230566,3.243,3899.5,3899.3,0.002]
[1761329230766,3.243,3899.5,3899.4,0.002]
[1761329231708,3.243,3899.5,3899.4,2.5664971]
[1761329232910,3.243,3899.5,3899.4,0.002]
[1761329234993,8.98012641,3899.5,3899.4,0.002]
[1761329235180,11.77175774,3899.5,3899.4,0.002]
[1761329235778,9.20732641,3899.5,3899.4,0.002]
[1761329236113,3.97454459,3899.5,3899.4,0.002]
[1761329241312,3.371,3899.5,3899.4,0.002]
[1761329245929,0.001,3899.6,3899.5,2.56443133]
[1761329246098,3.244,3899.6,3899.5,3.03303133]
[1761329248720,3.244,3899.6,3899.5,2.56443133]
[1761329249422,3.244,3899.6,3899.5,3.03303133]
[1761329249925,3.244,3899.6,3899.5,3.60598533]
[1761329252241,0.001,3899.6,3899.5,3.60598533]
[1761329252737,0.001,3899.6,3899.5,5.16118533]
[1761329260978,0.001,3899.6,3899.5,5.16118533]
[1761329265161,0.001,3899.6,3899.5,8.40318533]
[1761329266289,0.001,3899.6,3899.5,7.93458533]
[1761329266492,0.001,3899.6,3899.5,8.40608533]
[1761329267090,0.001,3899.6,3899.5,8.40808533]
[1761329267391,0.001,3899.6,3899.5,7.93658533]
[1761329267592,0.001,3899.6,3899.5,4.69458533]
[1761329268166,0.001,3899.6,3899.5,3.13938533]
[1761329268477,0.001,3899.6,3899.5,3.61088533]
[1761329270263,0.001,3899.6,3899.5,3.13938533]
[1761329270867,0.001,3899.6,3899.5,2.56643133]
[1761329274909,0.001,3899.6,3899.5,3.03793133]
[1761329276196,0.001,3899.6,3899.5,3.8080932]
[1761329277541,0.001,3899.6,3899.5,8.94167502]
[1761329278277,0.001,3899.6,3899.5,10.49687502]
[1761329278511,0.001,3899.6,3899.5,12.14041339]
[1761329278921,0.001,3899.6,3899.5,6.53533157]
[1761329279092,0.001,3899.6,3899.5,6.98293157]
[1761329280414,0.001,3899.6,3899.5,12.11651339]
[1761329281814,0.001,3899.6,3899.5,13.03766533]
[1761329283879,0.001,3899.6,3899.5,13.54454533]
[1761329284084,0.001,3899.6,3899.5,16.59139339]
[1761329284582,0.001,3899.6,3899.5,17.97388813]
[1761329285184,0.69033672,3901.9,3901.1,2.56337955]
[1761329285386,0.69033672,3901.9,3899.6,5.77424557]
[1761329285387,1.84147944,3903.7,3902.3,2.56259129]
[1761329285586,5.34788182,3904.0,3902.4,1.5552]
[1761329285894,0.2148,3903.2,3902.4,0.68981087]
[1761329286098,0.74963818,3903.2,3902.5,2.56239875]
[1761329286294,0.74963818,3903.2,3902.8,2.56225388]
[1761329286519,0.099,3903.1,3902.9,2.56219376]
[1761329287022,0.099,3903.1,3903.0,2.56213169]
[1761329287188,0.48858382,3903.1,3903.0,2.56213169]
[1761329287785,0.099,3903.9,3903.0,5.13358182]
[1761329287986,0.099,3903.9,3903.5,2.56173918]
[1761329288188,0.099,3903.9,3903.6,2.56172237]
[1761329289238,0.099,3903.9,3903.3,2.56192487]
[1761329289439,0.35753,3903.8,3903.6,2.56173547]
[1761329289959,0.099,3903.7,3903.5,2.56179148]
[1761329290420,0.35753,3903.8,3903.6,2.56171511]
[1761329290829,0.099,3903.7,3903.5,2.91930203]
[1761329291028,0.099,3903.7,3903.6,2.56173788]
[1761329292050,0.099,3903.7,3903.5,2.91930565]
[1761329292714,0.099,3903.7,3903.5,2.56177565]
[1761329292917,0.35753,3903.8,3903.4,0.35753]
[1761329293135,3.261,3903.7,3903.6,2.56173788]